lending/lending_fUSD_20260110
["ID","MTS","AMOUNT","RATE_DAILY","PERIOD"]
[401217280,1768053042295,-500.0,0.00017973,2]
[401217281,1768053042304,-500.0,0.00017973,2]
[401217282,1768053042314,-500.0,0.00017973,2]
[401217283,1768053042323,-500.0,0.00017973,2]
[401217284,1768053042333,-500.0,0.00017973,2]
[401217286,1768053042342,-500.0,0.00017973,2]
[401217287,1768053042351,-500.0,0.00017973,2]
[401217288,1768053042360,-500.0,0.00017973,2]
[401217289,1768053042371,-500.64146005,0.00017973,2]
[401217290,1768053042381,-281.91943671,0.00017973,2]
[401217291,1768053042391,-500.0,0.00017973,2]
[401217292,1768053042400,-500.0,0.00017973,2]
[401217293,1768053042411,-500.0,0.00017973,2]
[401217294,1768053042421,-500.0,0.00017973,2]
[401217295,1768053042431,-500.0,0.00017973,2]
[401217296,1768053042441,-500.0,0.00017973,2]
[401217297,1768053042452,-500.0,0.00017973,2]
[401217298,1768053042462,-500.0,0.00017973,2]
[401217299,1768053042471,-500.0,0.00017973,2]
[401217300,1768053042481,-500.0,0.00017973,2]
[401217301,1768053042491,-500.0,0.00017973,2]
[401217302,1768053042500,-500.0,0.00017973,2]
[401217303,1768053042510,-500.0,0.00017973,2]
[401217304,1768053042519,-507.85664462,0.00017973,2]
[401217305,1768053042528,-500.0,0.00017973,2]
[401217306,1768053042538,-500.0,0.00017973,2]
[401217307,1768053042548,-500.0,0.00017973,2]
[401217308,1768053042557,-500.0,0.00017973,2]
[401217309,1768053042567,-382.22994489,0.00017973,2]
[401217310,1768053042577,-500.0,0.00017973,2]
[401217311,1768053042586,-500.0,0.00017973,2]
[401217312,1768053042595,-500.0,0.00017973,2]
[401217313,1768053042605,-500.0,0.00017973,2]
[401217314,1768053042615,-500.0,0.00017973,2]
[401217315,1768053042625,-500.0,0.00017973,2]
[401217316,1768053042635,-500.0,0.00017973,2]
[401217317,1768053042647,-500.0,0.00017973,2]
[401217318,1768053042657,-500.0,0.00017973,2]
[401217319,1768053042666,-189.97011746,0.00017973,2]
[401217320,1768053042676,-734.0,0.00017981,2]
[401217321,1768053042685,-512795.9661343,0.00017992,2]
[401217322,1768053042695,-10302.7694427,0.00017992,2]
[401217323,1768053042706,-241.18406591,0.00017998,2]
[401217324,1768053042715,-1084.85121754,0.00017999,5]
[401217325,1768053042726,-1006.5165,0.00017999,2]
[401217326,1768053042735,-500.0,0.00017999,2]
[401217327,1768053042744,-167.74923503,0.00017999,2]
[401217328,1768053042754,-500.0,0.00017999,2]
[401217329,1768053042763,-500.0,0.00017999,2]
[401217330,1768053042772,-500.0,0.00017999,2]
[401217331,1768053042782,-500.0,0.00017999,2]
[401217332,1768053042792,-500.0,0.00017999,2]
[401217333,1768053042801,-500.0,0.00017999,2]
[401217334,1768053042811,-500.0,0.00017999,2]
[401217335,1768053042820,-500.0,0.00017999,2]
[401217336,1768053042830,-233.5887432,0.00017999,2]
[401217337,1768053042840,-500.0,0.00017999,2]
[401217338,1768053042849,-565.36379643,0.00017999,2]
[401217339,1768053042868,-586.37906068,0.00017999,2]
[401217340,1768053042879,-252.12379273,0.00018,2]
[401217341,1768053042888,-2081091.72918049,0.00018,2]
[401217343,1768053043648,-0.02024659,0.00018,2]
[401217344,1768053043849,500.0,0.00014647,2]
[401217345,1768053044289,-416.42723854,0.00016438,2]
[401217346,1768053044300,-32260.00133768,0.00018,2]
[401217347,1768053044315,-4127.89994869,0.00018,2]
[401217351,1768053045436,-561.54357013,0.00018,2]
[401217352,1768053045493,-327.3369789,0.00018,2]
[401217354,1768053062077,500.0,0.00014647,2]
[401217355,1768053062139,500.0,0.00014647,2]
[401217356,1768053062199,474.28667472,0.00014647,2]
[401217357,1768053089849,-290.0535,0.00014648,2]
[401217358,1768053089885,-1984.6992,0.00014648,2]
[401217359,1768053092818,5450.5046,0.00014648,2]
[401217360,1768053111057,1084.85121754,0.00014647,5]
[401217361,1768053121639,300.0,0.00014647,2]
[401217369,1768053241476,300.0,0.00014647,2]
[401217375,1768053301303,1200.0,0.00014647,2]
[401217378,1768053302057,300.0,0.00014647,2]
[401217380,1768053371434,500.0,0.00014647,2]
[401217381,1768053371476,499.99999999,0.00014647,2]
[401217382,1768053371524,500.0,0.00014647,2]
[401217383,1768053371568,500.0,0.00014647,2]
[401217384,1768053371610,500.0,0.00014647,2]
[401217385,1768053371655,500.0,0.00014647,2]
[401217386,1768053371698,500.0,0.00014647,2]
[401217387,1768053371742,500.0,0.00014647,2]
[401217388,1768053371789,500.0,0.00014647,2]
[401217389,1768053371838,500.0,0.00014647,2]
[401217390,1768053371881,500.0,0.00014647,2]
[401217391,1768053371931,500.0,0.00014647,2]
[401217392,1768053371983,641.44088529,0.00014647,2]
[401217393,1768053372047,173.71789718,0.00014647,2]
[401217399,1768053388366,512.0,0.000226,120]
[401217400,1768053388641,-326.28210282,0.00014647,2]
[401217401,1768053388681,-500.0,0.00014647,2]
[401217402,1768053388715,-300.0,0.00014647,2]
[401217407,1768053412757,-736.93334063,0.00014648,2]
[401217408,1768053415049,-325.26576385,0.00014648,2]
[401217409,1768053417831,-210.73445015,0.00014648,2]
[401217410,1768053421263,-252.70396908,0.00014648,2]
[401217411,1768053421392,300.0,0.00014647,2]
[401217412,1768053421749,150.0,0.00014647,2]
[401217413,1768053423293,477.39,0.00016,14]
[401217414,1768053423932,-371.45578516,0.00014648,2]
[401217415,1768053424414,572.87,0.000146,2]
[401217416,1768053425448,-208.50607902,0.00014648,2]
[401217417,1768053425782,233.0,0.00014647,2]
[401217418,1768053428426,-163.8389322,0.00014648,2]
[401217419,1768053430546,572.87,0.000142,5]
[401217420,1768053431143,200.0,0.00014648,2]
[401217421,1768053431247,297.75,0.00014,3]
[401217422,1768053431443,200.0,0.00014648,2]
[401217423,1768053434212,500.0,0.00014648,2]
[401217424,1768053435744,151.0,0.00014648,2]
[401217425,1768053436428,151.0,0.00014648,2]
[401217426,1768053437032,151.0,0.00014648,2]
[401217427,1768053437361,500.0,0.00014648,2]
[401217428,1768053437682,151.0,0.00014648,2]
[401217429,1768053438034,500.0,0.00014648,2]
[401217430,1768053438323,151.0,0.00014648,2]
[401217431,1768053438638,151.0,0.00014648,2]
[401217432,1768053438676,500.0,0.00014648,2]
[401217433,1768053438988,151.0,0.00014648,2]
[401217434,1768053439267,151.0,0.00014648,2]
[401217435,1768053439318,500.0,0.00014648,2]
[401217436,1768053439967,151.0,0.00014648,2]
[401217437,1768053440545,151.0,0.00014648,2]
[401217438,1768053440587,500.0,0.00014648,2]
[401217439,1768053440652,151.0,0.00014648,2]
[401217440,1768053440701,151.0,0.00014648,2]
[401217441,1768053440747,408.95579436,0.00014648,2]
[401217442,1768053440770,91.04420564,0.00014648,2]
[401217443,1768053440884,151.0,0.00014648,2]
[401217444,1768053441192,151.0,0.00014648,2]
[401217445,1768053441508,151.0,0.00014648,2]
[401217446,1768053441807,151.0,0.00014648,2]
[401217447,1768053442200,151.0,0.00014648,2]
[401217448,1768053442822,151.0,0.00014648,2]
[401217449,1768053443475,151.0,0.00014648,2]
[401217450,1768053444128,151.0,0.00014648,2]
[401217451,1768053444747,151.0,0.00014648,2]
[401217452,1768053445383,151.0,0.00014648,2]
[401217453,1768053445985,151.0,0.00014648,2]
[401217454,1768053446628,151.0,0.00014648,2]
[401217455,1768053447274,151.0,0.00014648,2]
[401217456,1768053447955,151.0,0.00014648,2]
[401217457,1768053451516,4794.0,0.00014629,2]
[401217458,1768053469615,-9679.72449594,0.00014648,2]
[401217459,1768053469890,-10000.01,0.00014648,2]
[401217460,1768053470001,-10000.01,0.00014648,2]
[401217461,1768053470123,-10000.01,0.00014648,2]
[401217462,1768053470320,-10000.01,0.00014648,2]
[401217463,1768053470559,-10000.01,0.00014648,2]
[401217464,1768053470731,-10000.01,0.00014648,2]
[401217465,1768053471431,-10000.01,0.00014648,2]
[401217466,1768053471610,-10000.01,0.00014648,2]
[401217467,1768053471809,-10000.01,0.00014648,2]
[401217468,1768053478920,1586.63,7.915e-05,2]
[401217469,1768053479320,1586.63,8.316e-05,2]
[401217470,1768053479536,1586.63,8.716e-05,2]
[401217471,1768053479980,1586.63,9.116e-05,2]
[401217472,1768053480393,1586.63,9.516e-05,2]
[401217473,1768053480600,1586.63,9.917e-05,2]
[401217474,1768053480810,1586.63,0.00010317,2]
[401217475,1768053487095,-181.27559436,0.00010717,2]
[401217476,1768053488466,4946.650091,7.945e-05,2]
[401217477,1768053489082,-162.14755588,0.00010717,2]
[401217478,1768053490716,-247.76023136,0.00010717,2]
[401217479,1768053493204,-204.7351323,0.00010717,2]
[401217480,1768053495790,-790.7114861,0.00010717,2]
[401217481,1768053495824,-1586.63,0.00011117,2]
[401217482,1768053495857,-1586.63,0.00011518,2]
[401217483,1768053495890,-195.0,0.00011789,2]
[401217484,1768053495923,-95.4370278,0.00011918,2]
[401217485,1768053496026,-1491.1929722,0.00011918,2]
[401217486,1768053496097,-1586.63,0.00012318,2]
[401217487,1768053496139,-1586.63,0.00012718,2]
[401217488,1768053496178,-1200.0,0.00013118,2]
[401217489,1768053496252,-1253.49,0.00013119,2]
[401217490,1768053496504,-333.14,0.00013119,2]
[401217491,1768053496537,-1586.63,0.00013519,2]
[401217492,1768053496570,-1586.63,0.00013919,2]
[401217493,1768053496603,-1400.58,0.00014319,2]
[401217494,1768053496685,-186.05,0.00014319,2]
[401217498,1768053515722,1500.0,0.00010959,2]
[401217499,1768053524259,750.332204,0.00014574,2]
[401217500,1768053531024,500.0,0.00014548,2]
[401217501,1768053541411,300.0,0.00014647,2]
[401217502,1768053547902,518.55452723,0.0001464,2]
[401217503,1768053573535,4110.3351,0.00014548,2]
[401217504,1768053581144,2320.78816877,0.00014548,2]
[401217505,1768053581173,10000.01,0.00014548,2]
[401217506,1768053581200,10000.01,0.00014548,2]
[401217507,1768053581224,10000.01,0.00014548,2]
[401217508,1768053581247,10000.01,0.00014548,2]
[401217509,1768053581270,3312.17103123,0.00014548,2]
[401217510,1768053583116,268.42305266,0.00014635,2]
[401217511,1768053592980,2554.60103379,0.00014568,2]
[401217513,1768053604867,-5000.0,0.00010413,2]
[401217516,1768053605272,-2428.9506,0.00014548,2]
[401217517,1768053605304,-300.0,0.00014647,2]
[401217518,1768053605335,-300.0,0.00014647,2]
[401217519,1768053605366,-1200.0,0.00014647,2]
[401217520,1768053605395,-300.0,0.00014647,2]
[401217521,1768053605426,-150.0,0.00014647,2]
[401217522,1768053605456,-155.0,0.00014647,2]
[401217524,1768053606123,270.0,0.00014548,2]
[401217534,1768053610557,62.1088,0.00014638,2]
[401217535,1768053610612,5053.2012,0.00014638,2]
[401217536,1768053610774,4946.8088,0.00014638,2]
[401217537,1768053610826,168.5012,0.00014638,2]
[401217539,1768053611143,5115.31,0.00014638,2]
[401217540,1768053611373,4716.1988,0.00014638,2]
[401217541,1768053611434,399.1112,0.00014638,2]
[401217543,1768053611866,5115.31,0.00014638,2]
[401217566,1768053622775,353.23286994,0.00014548,2]
[401217586,1768053628771,353.23286993,0.00014558,2]
[401217591,1768053629791,178.69235849,0.00014647,5]
[401217598,1768053634767,353.23286993,0.00014568,2]
[401217600,1768053636798,1500.0,0.0001384,2]
[401217601,1768053654784,209.35171076,0.00014647,2]
[401217602,1768053654886,151.0,0.00014647,2]
[401217603,1768053655069,151.0,0.00014647,2]
[401217604,1768053662303,300.0,0.00014647,2]
[401217605,1768053680410,371.2237,0.00014548,2]
[401217606,1768053681473,500.0,0.00014647,2]
[401217607,1768053681576,500.0,0.00014647,2]
[401217608,1768053684176,500.0,0.00014647,2]
[401217609,1768053693764,175.49,0.00014355,2]
[401217610,1768053693842,1721.605,0.00014355,2]
[401217623,1768053735065,2500.0,0.00014548,2]
[401217624,1768053741954,166.66,0.00014301,2]
[401217625,1768053742351,15.28862095,0.00014602,2]
[401217626,1768053742412,151.37137905,0.00014602,2]
[401217627,1768053782016,150.0,0.00014647,2]
[401217638,1768053796150,1200.0,0.00014647,2]
[401217639,1768053813638,2945.02335532,0.00014548,2]
[401217640,1768053815946,782.156278,0.00013872,2]
[401217641,1768053835701,717.843722,0.00013178,2]
[401217652,1768053877974,4053.61526563,0.00014548,2]
[401217653,1768053878021,5899.71053437,0.00014548,2]
[401217654,1768053901361,300.0,0.00014647,2]
[401217655,1768053901739,1200.0,0.00014647,2]
[401217656,1768053926867,969.4529,0.00014548,2]
[401217664,1768053955542,500.0,0.00014647,2]
[401217665,1768053955769,500.0,0.00014647,2]
[401217666,1768053956145,151.0,0.00014647,2]
[401217667,1768053956214,151.0,0.00014647,2]
[401217668,1768053956350,328.84656563,0.00014647,2]
[401217669,1768053956409,171.15343437,0.00014647,2]
[401217670,1768053957044,151.0,0.00014647,2]
[401217671,1768053961815,150.0,0.00014647,2]
[401217672,1768053981473,2928.86305783,0.00014548,2]
[401217673,1768054003796,1087.31761346,0.00014647,5]
[401217674,1768054059637,1209.5,0.00014426,2]
[401217675,1768054069433,4302.17589434,0.00014647,2]
[401217676,1768054069490,1043.8904545,0.00014647,2]
[401217679,1768054082383,150.0,0.00014402,2]
[401217680,1768054133376,10000.01,0.00014548,2]
[401217681,1768054133434,10000.01,0.00014548,2]
[401217682,1768054133486,10000.01,0.00014548,2]
[401217683,1768054133541,10000.01,0.00014548,2]
[401217684,1768054133593,10000.01,0.00014548,2]
[401217685,1768054133645,10000.01,0.00014548,2]
[401217686,1768054133696,10000.01,0.00014548,2]
[401217687,1768054133748,10000.01,0.00014548,2]
[401217688,1768054133801,10000.01,0.00014548,2]
[401217689,1768054145447,-250.0,0.00014377,2]
[401217690,1768054167653,-1957.914986,0.00014305,2]
[401217691,1768054177259,-1000.0,0.00014264,2]
[401217692,1768054177663,-908.58445582,0.00014377,2]
[401217693,1768054177777,-10000.01,0.00014377,2]
[401217694,1768054177986,-1938.02554418,0.00014377,2]
[401217695,1768054178047,-150.0,0.00014547,2]
[401217696,1768054201417,1200.0,0.00014547,2]
[401217697,1768054215593,4453.21234344,0.000145,2]
[401217698,1768054230812,170.7465682,0.00014448,2]
[401217699,1768054230865,318.46273966,0.00014448,2]
[401217706,1768054231538,-13538.89754288,0.00014548,2]
[401217707,1768054231656,-548.07971711,0.00014548,2]
[401217708,1768054231714,-955.4655682,0.00014548,2]
[401217709,1768054231726,-1032.00616953,0.00014548,2]
[401217720,1768054237813,-551.3719,0.00014548,2]
[401217723,1768054239897,-658.3,0.00014548,2]
[401217724,1768054239954,-892715.78910228,0.00014548,2]
[401217725,1768054239963,-270.0,0.00014548,2]
[401217726,1768054239973,-500.0,0.00014648,2]
[401217727,1768054239983,-500.0,0.00014648,2]
[401217728,1768054239992,-500.0,0.00014648,2]
[401217729,1768054240004,-498.0409344,0.00014648,2]
[401217730,1768054240016,-165.99817722,0.00014648,2]
[401217731,1768054240025,-300.0,0.00014648,2]
[401217732,1768054240035,-250.0,0.00014648,2]
[401217733,1768054240044,-300.0,0.00014648,2]
[401217734,1768054240054,-250.0,0.00014648,2]
[401217735,1768054240064,-200.0,0.00014648,2]
[401217736,1768054240074,-200.0,0.00014648,2]
[401217737,1768054240084,-294.0613678,0.00014648,2]
[401217738,1768054240093,-1586.63,0.0001472,2]
[401217739,1768054240103,-200.0,0.00014794,2]
[401217740,1768054240113,-7632.64,0.00014794,2]
[401217741,1768054240122,-9999.99,0.00014794,2]
[401217742,1768054240132,-347.85,0.00014794,2]
[401217743,1768054240142,-200.0,0.00014794,2]
[401217744,1768054240152,-166.66,0.00014903,2]
[401217745,1768054240162,-200.0,0.00014942,2]
[401217746,1768054240171,-200.0,0.00014942,2]
[401217747,1768054240181,-6566.35,0.00015027,2]
[401217748,1768054240191,-1341.78,0.00015054,2]
[401217749,1768054240201,-1548.52,0.00015054,2]
[401217750,1768054240211,-36923.16,0.00015054,2]
[401217751,1768054240220,-20661.87,0.00015072,2]
[401217752,1768054240230,-200.0,0.00015092,2]
[401217753,1768054240240,-200.0,0.00015092,2]
[401217754,1768054240250,-1000.0,0.000151,2]
[401217755,1768054240261,-9999.99,0.0001512,2]
[401217756,1768054240270,-5551.89,0.0001512,2]
[401217757,1768054240279,-1586.63,0.0001512,2]
[401217758,1768054240289,-150.99,0.00015137,2]
[401217759,1768054240298,-9999.99,0.00015137,2]
[401217760,1768054240307,-2507.77,0.00015137,2]
[401217761,1768054240316,-2928.86305783,0.00015137,2]
[401217762,1768054240325,-500.0,0.00015173,2]
[401217763,1768054240335,-500.0,0.00015173,2]
[401217764,1768054240345,-500.0,0.00015173,2]
[401217765,1768054240356,-499.99,0.00015173,2]
[401217766,1768054240366,-462.07,0.00015173,2]
[401217767,1768054240377,-323.61319503,0.00015173,2]
[401217768,1768054240388,-500.0,0.00015173,2]
[401217769,1768054240399,-500.74413922,0.00015173,2]
[401217770,1768054240409,-511.71385202,0.00015173,2]
[401217771,1768054240421,-501.96234831,0.00015173,2]
[401217772,1768054240430,-502.77849751,0.00015173,2]
[401217773,1768054240441,-500.0,0.00015173,2]
[401217774,1768054240452,-500.0,0.00015173,2]
[401217775,1768054240461,-158.8798646,0.00015173,2]
[401217776,1768054240472,-505.5028132,0.00015173,2]
[401217777,1768054240481,-500.0,0.00015173,2]
[401217778,1768054240492,-166.66,0.00015204,2]
[401217779,1768054240502,-200.0,0.00015243,2]
[401217780,1768054240512,-200.0,0.00015243,2]
[401217781,1768054240523,-1852.42,0.00015311,2]
[401217782,1768054240532,-206.16,0.00015316,2]
[401217783,1768054240542,-166.66,0.00015505,2]
[401217784,1768054240552,-1586.63,0.0001552,2]
[401217785,1768054240561,-151.0,0.00015685,2]
[401217786,1768054240571,-152.0,0.00015718,2]
[401217787,1768054240581,-1261.0,0.00015718,2]
[401217788,1768054240596,-502.91261306,0.00015721,2]
[401217789,1768054240606,-2928.86305783,0.00015726,2]
[401217790,1768054240616,-567.31,0.00015758,2]
[401217791,1768054240628,-1000.0,0.00015758,2]
[401217792,1768054240638,-1000.0,0.00015758,2]
[401217793,1768054240648,-181.08010149,0.00015758,2]
[401217794,1768054240657,-1000.0,0.00015758,2]
[401217795,1768054240667,-1000.0,0.00015758,2]
[401217796,1768054240677,-151.0,0.00015758,2]
[401217797,1768054240686,-1000.0,0.00015758,2]
[401217798,1768054240696,-1000.0,0.00015758,2]
[401217799,1768054240706,-1000.0,0.00015758,2]
[401217800,1768054240716,-1000.0,0.00015758,2]
[401217801,1768054240726,-1000.0,0.00015758,2]
[401217802,1768054240737,-998.0,0.00015758,2]
[401217803,1768054240747,-1000.0,0.00015758,2]
[401217804,1768054240756,-1000.0,0.00015758,2]
[401217805,1768054240765,-322.6107,0.00015758,2]
[401217806,1768054240775,-1000.0,0.00015758,2]
[401217807,1768054240784,-1000.0,0.00015758,2]
[401217808,1768054240793,-706.57931958,0.00015758,2]
[401217809,1768054240803,-1000.0,0.00015758,2]
[401217810,1768054240817,-1000.0,0.00015758,2]
[401217811,1768054240826,-250.0,0.00015758,2]
[401217812,1768054240836,-250.0,0.00015758,2]
[401217813,1768054240846,-500.0,0.00015758,2]
[401217814,1768054240856,-250.0,0.00015758,2]
[401217815,1768054240865,-250.0,0.00015758,2]
[401217816,1768054240875,-500.0,0.00015758,2]
[401217817,1768054240884,-500.0,0.00015758,2]
[401217818,1768054240894,-250.0,0.00015758,2]
[401217819,1768054240903,-500.0,0.00015758,2]
[401217820,1768054240913,-250.0,0.00015758,2]
[401217821,1768054240922,-250.0,0.00015758,2]
[401217822,1768054240931,-500.0,0.00015758,2]
[401217823,1768054240943,-250.0,0.00015758,2]
[401217824,1768054240955,-500.0,0.00015758,2]
[401217825,1768054240965,-500.0,0.00015758,2]
[401217826,1768054240974,-285.08125974,0.00015758,2]
[401217827,1768054240985,-628.77903219,0.00015758,2]
[401217828,1768054240995,-500.0,0.00015758,2]
[401217829,1768054241005,-1025.94323817,0.00015758,2]
[401217830,1768054241015,-500.0,0.00015758,2]
[401217831,1768054241024,-500.0,0.00015758,2]
[401217832,1768054241033,-500.0,0.00015758,2]
[401217833,1768054241043,-500.0,0.00015758,2]
[401217834,1768054241053,-500.0,0.00015758,2]
[401217835,1768054241062,-250.0,0.00015758,2]
[401217836,1768054241072,-398.69804613,0.00015758,2]
[401217837,1768054241082,-250.0,0.00015758,2]
[401217838,1768054241091,-250.0,0.00015758,2]
[401217839,1768054241101,-214.19143741,0.00015758,2]
[401217840,1768054241111,-620.0,0.00015758,2]
[401217841,1768054241121,-496.47127164,0.00015758,2]
[401217842,1768054241131,-166.66,0.00015806,2]
[401217843,1768054241141,-218.56009979,0.00015808,2]
[401217844,1768054241150,-318.9635124,0.000159,2]
[401217845,1768054241159,-318.9635124,0.000159,2]
[401217846,1768054241169,-318.9635124,0.000159,2]
[401217847,1768054241179,-318.9635124,0.000159,2]
[401217848,1768054241188,-318.9635124,0.000159,2]
[401217849,1768054241197,-429.31,0.00015917,2]
[401217850,1768054241207,-214.43976733,0.00015936,2]
[401217851,1768054241216,-3928.31,0.00015977,2]
[401217852,1768054241225,-1680.0,0.00016001,2]
[401217853,1768054241235,-300.0,0.00016002,2]
[401217854,1768054241245,-300.0,0.00016002,2]
[401217855,1768054241254,-567.31,0.00016032,2]
[401217856,1768054241264,-1000.0,0.00016047,2]
[401217857,1768054241273,-1000.0,0.000161,3]
[401217858,1768054241283,-500.0,0.00016112,2]
[401217859,1768054241292,-500.0,0.00016112,2]
[401217860,1768054241301,-300.0,0.00016112,2]
[401217861,1768054241311,-300.0,0.00016112,2]
[401217862,1768054241320,-250.0,0.00016112,2]
[401217863,1768054241330,-300.0,0.00016112,2]
[401217864,1768054241339,-150.0,0.00016231,2]
[401217865,1768054241349,-197.03,0.00016234,2]
[401217866,1768054241359,-567.31,0.00016306,2]
[401217867,1768054241369,-337.69985134,0.00016306,2]
[401217868,1768054241379,-514.84070869,0.00016306,2]
[401217869,1768054241388,-2928.86305783,0.00016315,2]
[401217870,1768054241397,-500.0,0.00016438,2]
[401217871,1768054241407,-500.0,0.00016438,2]
[401217872,1768054241417,-500.0,0.00016438,2]
[401217873,1768054241427,-359.11221161,0.00016438,2]
[401217874,1768054241437,-600.0,0.00016438,2]
[401217875,1768054241447,-150.0,0.00016521,2]
[401217876,1768054241456,-150.0,0.00016521,2]
[401217877,1768054241466,-150.0,0.00016521,2]
[401217878,1768054241476,-150.0,0.00016521,2]
[401217879,1768054241485,-150.0,0.00016521,2]
[401217880,1768054241495,-150.0,0.00016521,2]
[401217881,1768054241504,-150.0,0.00016521,2]
[401217882,1768054241514,-150.0,0.00016521,2]
[401217883,1768054241523,-150.0,0.00016521,2]
[401217884,1768054241532,-150.0,0.00016521,2]
[401217885,1768054241541,-166.68,0.00016535,2]
[401217886,1768054241551,-567.31,0.0001658,2]
[401217887,1768054241561,-78367.0,0.000166,2]
[401217888,1768054241570,-5534.0,0.000167,3]
[401217889,1768054241580,-5196.0,0.00016782,2]
[401217890,1768054241594,-567.31,0.00016854,2]
[401217891,1768054241604,-533.88981491,0.00016854,2]
[401217892,1768054241613,-1087.31761346,0.00016899,5]
[401217893,1768054241623,-5534.0,0.000169,5]
[401217894,1768054241634,-2928.86305783,0.00016904,2]
[401217895,1768054241643,-600.0,0.00016986,2]
[401217896,1768054241653,-100956.6,0.00016986,2]
[401217897,1768054241663,-2488.7346131,0.00017,2]
[401217898,1768054241673,-250.0,0.00017,2]
[401217899,1768054241682,-1153.0,0.000171,4]
[401217900,1768054241692,-151.0,0.00017127,2]
[401217901,1768054241701,-334.5472959,0.00017127,2]
[401217902,1768054241711,-642.94,0.00017127,2]
[401217903,1768054241720,-567.31043586,0.00017128,2]
[401217904,1768054241730,-200.0,0.00017174,2]
[401217905,1768054241739,-159.16121496,0.00017207,2]
[401217906,1768054241748,-429.31,0.00017287,2]
[401217907,1768054241757,-168.0,0.00017326,2]
[401217908,1768054241767,-553.64373807,0.00017402,2]
[401217909,1768054241776,-150.0,0.00017438,2]
[401217910,1768054241788,-150.0,0.00017438,2]
[401217911,1768054241798,-150.0,0.00017438,2]
[401217912,1768054241808,-19956.0,0.0001746,2]
[401217913,1768054241819,-2928.86305783,0.00017494,2]
[401217914,1768054241829,-2000.0,0.000175,2]
[401217915,1768054241839,-1000.0,0.000175,2]
[401217916,1768054241849,-600.0,0.00017534,2]
[401217917,1768054241859,-151.10085397,0.00017589,2]
[401217918,1768054241870,-250.0,0.00017589,2]
[401217919,1768054241881,-500.0,0.00017589,2]
[401217920,1768054241894,-150.0,0.00017589,2]
[401217921,1768054241903,-500.0,0.00017589,2]
[401217922,1768054241912,-150.0,0.00017589,2]
[401217923,1768054241923,-150.0,0.00017589,2]
[401217924,1768054241935,-150.0,0.00017589,2]
[401217925,1768054241946,-150.0,0.00017589,2]
[401217926,1768054241956,-150.0,0.00017589,2]
[401217927,1768054241966,-150.0,0.00017589,2]
[401217928,1768054241977,-242.38852672,0.00017589,2]
[401217929,1768054241988,-2351.0,0.00017601,2]
[401217930,1768054241997,-168.0,0.00017604,2]
[401217931,1768054242007,-19956.0,0.0001764,2]
[401217932,1768054242016,-1824.84195805,0.0001764,2]
[401217933,1768054242026,-500.0,0.00017644,2]
[401217934,1768054242036,-500.0,0.00017644,2]
[401217935,1768054242046,-150.0,0.00017644,2]
[401217936,1768054242056,-200.0,0.00017644,2]
[401217937,1768054242066,-200.0,0.00017644,2]
[401217938,1768054242076,-150.0,0.00017644,2]